bitfinex-derivatives/quotes_SOLF0:USTF0_20250323
["timestamp","ask_amount","ask_price","bid_price","bid_amount"]
[1742747669485,359.0,131.94,131.89,9.64028064]
[1742747669895,0.0574056,131.93,131.89,24.72512511]
[1742747670296,0.0574056,131.93,131.9,9.64028064]
[1742747670594,0.0574056,131.93,131.9,15.08484447]
[1742747671891,7.6386056,131.93,131.9,15.08484447]
[1742747672196,0.0574056,131.93,131.9,15.08484447]
[1742747673896,9.64028064,131.91,131.87,15.65518064]
[1742747674092,9.64028064,131.9,131.87,15.08484447]
[1742747674298,9.64028064,131.88,131.84,38.72028064]
[1742747674699,0.04972346,131.87,131.85,9.64028064]
[1742747674898,38.70028064,131.89,131.84,24.72512511]
[1742747675096,0.04906628,131.87,131.84,24.72512511]
[1742747676296,0.04906628,131.87,131.84,32.31102511]
[1742747676802,0.04906628,131.87,131.84,24.72512511]
[1742747677004,0.04906628,131.87,131.84,15.08484447]
[1742747677195,0.04906628,131.87,131.84,24.72512511]
[1742747677401,0.04906628,131.87,131.86,17.22538064]
[1742747677700,0.04906628,131.87,131.86,29.02]
[1742747678103,0.04906628,131.87,131.84,29.0]
[1742747678400,9.68934692,131.87,131.84,15.08484447]
[1742747680003,0.04906628,131.87,131.84,9.64028064]
[1742747680393,9.68934692,131.87,131.83,21.22538064]
[1742747680598,9.64028064,131.86,131.83,19.08344447]
[1742747682602,28.9,131.85,131.77,250.08]
[1742747682810,9.64028064,131.84,131.78,28.9]
[1742747683106,0.0504141,131.82,131.8,9.64028064]
[1742747683307,0.0504141,131.82,131.77,29.0]
[1742747683507,0.0504141,131.82,131.81,9.64028064]
[1742747683707,0.0504141,131.82,131.81,17.22828064]
[1742747684703,1.41e-05,131.82,131.81,21.39868064]
[1742747684909,359.0,131.86,131.85,7.5857]
[1742747685110,9.64028064,131.88,131.85,7.5857]
[1742747685305,9.64028064,131.88,131.86,7.5851]
[1742747686014,9.69392469,131.88,131.86,7.63674147]
[1742747686518,9.69392469,131.88,131.87,7.5845]
[1742747686519,0.05364405,131.88,131.87,7.5845]
[1742747686815,390.10688815,131.9,131.87,9.64028064]
[1742747687010,31.10688815,131.9,131.89,9.64028064]
[1742747687212,31.10688815,131.9,131.89,17.22368064]
[1742747687514,31.10688815,131.9,131.89,7.5834]
[1742747687715,9.64028064,131.91,131.88,7.5839]
[1742747687909,0.05100286,131.9,131.87,13.60358064]
[1742747688111,0.05100286,131.9,131.87,19.11302358]
[1742747689114,0.05100286,131.9,131.88,7.584]
[1742747689315,9.6912835,131.9,131.86,38.61192211]
[1742747689518,9.6912835,131.9,131.86,53.69675248]
[1742747689815,9.6912835,131.9,131.86,24.77675248]
[1742747690019,9.64028064,131.87,131.86,0.05164147]
[1742747690414,17.22478064,131.87,131.86,0.05164147]
[1742747690819,7.5845,131.87,131.86,0.05164147]
[1742747692125,387.91100286,131.9,131.86,0.05164147]
[1742747692725,7.5839,131.89,131.86,7.63654147]
[1742747692925,387.91100286,131.9,131.86,0.05164147]
[1742747693127,7.5838,131.89,131.86,0.05164147]
[1742747693423,387.91100286,131.9,131.86,0.05164147]
[1742747693823,7.5844,131.88,131.86,0.05164147]
[1742747694218,15.22190609,131.89,131.86,0.05164147]
[1742747694415,387.91100286,131.9,131.86,7.63674147]
[1742747695123,7.5841,131.88,131.86,0.05164147]
[1742747695329,387.91100286,131.9,131.86,0.05164147]
[1742747696026,7.5844,131.88,131.86,0.05164147]
[1742747696233,387.91100286,131.9,131.86,0.05164147]
[1742747696422,7.5838,131.89,131.86,7.63644147]
[1742747696620,387.91100286,131.9,131.86,7.63644147]
[1742747697028,7.5835,131.89,131.86,7.63644147]
[1742747697428,387.91100286,131.9,131.86,7.63644147]
[1742747697624,7.5841,131.88,131.86,0.05164147]
[1742747698028,387.91100286,131.9,131.86,0.05164147]
[1742747698332,7.5845,131.87,131.86,0.05164147]
[1742747700435,387.91100286,131.9,131.86,0.05164147]
[1742747700636,15.22190609,131.89,131.86,0.05164147]
[1742747701031,7.5845,131.87,131.86,0.05164147]
[1742747702931,387.91100286,131.9,131.86,0.05164147]
[1742747702932,359.05100286,131.9,131.86,0.05164147]
[1742747703134,359.05100286,131.9,131.86,28.79164147]
[1742747704236,0.05100286,131.9,131.86,44.01354756]
[1742747704434,0.05100286,131.9,131.87,4.0251]
[1742747704737,0.05100286,131.9,131.89,7.5834]
[1742747704938,0.05100286,131.9,131.89,36.3034]
[1742747705236,0.05100286,131.9,131.89,7.5834]
[1742747706339,359.0,131.94,131.91,7.5818]
[1742747706539,359.0,131.94,131.88,43.94190609]
[1742747706540,359.0,131.94,131.88,43.80483037]
[1742747707137,7.582,131.92,131.89,7.5831]
[1742747707338,7.582,131.92,131.89,22.66793037]
[1742747707639,7.63604545,131.92,131.89,22.71586146]
[1742747709142,7.63604545,131.92,131.9,7.5828]
[1742747709533,0.05404545,131.92,131.9,7.5828]
[1742747709930,0.05404545,131.92,131.9,15.08483037]
[1742747710137,7.63624545,131.92,131.9,15.08483037]
[1742747712143,7.63624545,131.92,131.9,22.66763037]
[1742747712338,7.63624545,131.92,131.9,15.08483037]
[1742747712842,9.73527525,131.91,131.9,15.08483037]
[1742747716239,17.31747525,131.91,131.9,15.08483037]
[1742747716841,9.73527525,131.91,131.9,15.08483037]
[1742747718143,17.3713207,131.92,131.9,15.08483037]
[1742747719833,17.3713207,131.92,131.9,22.66753037]
[1742747720443,9.7893207,131.92,131.9,22.66753037]
[1742747721045,0.05404545,131.92,131.91,7.5822]
[1742747721246,0.05404545,131.92,131.89,9.78320634]
[1742747721540,0.05404545,131.92,131.89,0.04793109]
[1742747721745,9.7893207,131.92,131.89,15.13276146]
[1742747722045,17.3713207,131.92,131.89,22.71586146]
[1742747723246,9.73527525,131.91,131.89,22.71586146]
[1742747723947,9.7893207,131.92,131.9,7.5828]
[1742747724147,9.7893207,131.92,131.89,15.13276146]
[1742747724443,0.05404545,131.92,131.9,7.5825]
[1742747724946,0.05404545,131.92,131.9,7.5828]
[1742747726640,7.63574545,131.92,131.89,7.63103109]
[1742747726836,9.7893207,131.92,131.89,0.04793109]
[1742747727040,7.5827,131.91,131.89,15.13276146]
[1742747727647,7.5827,131.91,131.89,22.71606146]
[1742747727949,17.3712207,131.92,131.89,22.71606146]
[1742747728440,17.3712207,131.92,131.9,7.5827]
[1742747728838,9.7893207,131.92,131.9,22.66753037]
[1742747729848,17.3711207,131.92,131.9,22.66753037]
[1742747730653,0.05404545,131.92,131.91,7.5822]
[1742747731950,0.05404545,131.92,131.89,9.78320634]
[1742747735853,0.05404545,131.92,131.9,9.73527525]
[1742747736256,7.63574545,131.92,131.89,9.78320634]
[1742747736756,0.05404545,131.92,131.89,9.78320634]
[1742747737450,7.5823,131.91,131.89,0.04793109]
[1742747737651,0.05404545,131.92,131.89,0.04793109]
[1742747737852,0.05404545,131.92,131.89,9.78320634]
[1742747738771,7.5826,131.91,131.89,9.78320634]
[1742747739260,7.5826,131.91,131.89,24.86803671]
[1742747739751,7.5828,131.9,131.89,24.86803671]
[1742747740256,0.05404545,131.92,131.89,24.86803671]
[1742747740459,7.5828,131.9,131.89,24.86803671]
[1742747743061,7.5828,131.9,131.89,15.13276146]
[1742747744358,17.31807525,131.9,131.89,0.04793109]
[1742747746967,98.1246822,131.9,131.89,0.04793109]
[1742747748966,82.32878877,131.9,131.89,0.04793109]
[1742747749667,65.01071352,131.9,131.89,0.04793109]
[1742747750662,0.05404545,131.92,131.89,38.02320634]
[1742747751368,9.7893207,131.92,131.89,43.37276146]
[1742747752468,17.3714207,131.92,131.89,43.37276146]
[1742747753171,7.63614545,131.92,131.89,43.37276146]
[1742747754573,0.05404545,131.92,131.89,28.28793109]
[1742747754869,0.05404545,131.92,131.89,38.02320634]
[1742747755770,7.63574545,131.92,131.89,38.02320634]
[1742747756272,0.05404545,131.92,131.89,38.02320634]
[1742747757171,9.7893207,131.92,131.89,28.28793109]
[1742747757373,7.5824,131.91,131.89,15.13276146]
[1742747757571,9.7893207,131.92,131.89,15.13276146]
[1742747757873,7.5826,131.91,131.89,15.13276146]
[1742747760476,17.3713207,131.92,131.89,0.04793109]
[1742747760686,0.05404545,131.92,131.89,9.78320634]
[1742747761073,0.05404545,131.92,131.89,17.36620634]
[1742747761272,0.05404545,131.92,131.9,9.73527525]
[1742747761681,0.05404545,131.92,131.9,17.31797525]
[1742747763476,0.05404545,131.92,131.91,7.5822]
[1742747763678,0.05404545,131.92,131.9,9.73527525]
[1742747764281,9.7893207,131.92,131.9,15.08483037]
[1742747764480,7.5822,131.91,131.89,0.04793109]
[1742747764679,17.31747525,131.91,131.89,15.13276146]
[1742747766186,9.73527525,131.91,131.89,22.71606146]
[1742747766380,9.73527525,131.91,131.89,15.13276146]
[1742747766579,9.73527525,131.9,131.89,0.04793109]
[1742747766781,17.31807525,131.9,131.89,0.04793109]
[1742747767578,9.73527525,131.9,131.89,0.04793109]
[1742747767774,37.73527525,131.91,131.89,7.63133109]
[1742747767982,28.0,131.91,131.89,7.63133109]
[1742747769281,376.3714207,131.92,131.89,7.63133109]
[1742747769585,386.81601212,131.92,131.89,7.63133109]
[1742747769785,379.23391212,131.92,131.9,7.5827]
[1742747770577,369.49863687,131.92,131.9,7.5827]
[1742747770884,369.49863687,131.92,131.91,7.5822]
[1742747771284,379.23391212,131.92,131.89,0.04793109]
[1742747771785,379.23391212,131.92,131.9,7.5826]
[1742747771988,386.81561212,131.92,131.9,7.5826]
[1742747772189,0.05404545,131.92,131.89,0.04793109]
[1742747772386,9.73527525,131.91,131.89,0.04793109]
[1742747772582,9.73527525,131.91,131.89,15.13276146]
[1742747772983,17.31797525,131.91,131.89,15.13276146]
[1742747773888,9.73527525,131.91,131.89,22.71606146]
[1742747774588,17.31747525,131.91,131.89,22.71606146]
[1742747774787,9.73527525,131.91,131.89,22.71606146]
[1742747774990,10.49863687,131.92,131.89,15.13276146]
[1742747775183,10.49863687,131.92,131.89,0.04793109]
[1742747775588,10.49863687,131.92,131.9,7.5823]
[1742747775890,10.49863687,131.92,131.89,0.04793109]
[1742747776983,10.49863687,131.92,131.91,7.5822]
[1742747777390,23.50897786,131.92,131.91,7.5822]
[1742747777592,23.50897786,131.92,131.9,7.5825]
[1742747779691,23.50897786,131.92,131.89,9.78320634]
[1742747779883,23.50897786,131.92,131.9,9.73527525]
[1742747780195,23.50897786,131.92,131.9,7.5826]
[1742747780892,31.09067786,131.92,131.89,7.63123109]
[1742747781087,7.63574545,131.92,131.89,7.63123109]
[1742747781393,0.05404545,131.92,131.89,0.04793109]
[1742747781692,0.05404545,131.92,131.9,7.5825]
[1742747782391,136.44238798,131.94,131.91,9.73527525]
[1742747782690,105.36389858,131.94,131.93,9.73527525]
[1742747782884,74.43319858,131.94,131.93,37.57527525]
[1742747783089,30.86619858,131.94,131.93,45.15637525]
[1742747783291,125.5218127,131.95,131.93,37.57527525]
[1742747783491,125.5218127,131.95,131.94,17.31577525]
[1742747783691,125.58011625,131.95,131.94,17.31577525]
[1742747785695,125.58011625,131.95,131.93,45.16833065]
[1742747785997,0.05830355,131.95,131.93,45.16833065]
[1742747787293,0.05830355,131.95,131.94,7.5805]
[1742747788593,359.0,132.0,131.98,7.5779]
[1742747788796,359.0,132.0,131.98,17.31317525]
[1742747789298,359.0,132.0,131.98,7.5779]
[1742747789812,359.05630218,132.0,131.98,7.63559257]
[1742747790497,9.79157743,132.0,131.98,7.63559257]
[1742747790699,9.79157743,132.0,131.98,0.05769257]
[1742747790700,17.36877743,132.0,131.98,0.05769257]
[1742747790899,9.73527525,131.99,131.95,37.47527525]
[1742747791099,9.73527525,131.98,131.95,37.47527525]
[1742747791794,17.31387525,131.98,131.95,37.47527525]
[1742747792202,17.31387525,131.98,131.95,37.52822155]
[1742747792799,7.5786,131.98,131.95,37.52822155]
[1742747793701,9.73527525,131.96,131.95,0.0529463]
[1742747793899,9.73527525,131.96,131.91,9.73527525]
[1742747794100,9.73527525,131.95,131.91,17.31717525]
[1742747795001,7.63598643,131.94,131.92,0.05327022]
[1742747795494,7.63568643,131.94,131.92,0.05327022]
[1742747796000,0.05508643,131.94,131.92,0.05327022]
[1742747796300,7.5811,131.93,131.92,0.05327022]
[1742747796803,7.63578643,131.94,131.92,0.05327022]
[1742747798003,7.5811,131.93,131.92,0.05327022]
[1742747800502,7.5826,131.91,131.88,17.31887525]
[1742747800698,7.5826,131.91,131.88,45.07887525]
[1742747800897,9.73527525,131.92,131.88,45.07887525]
[1742747801100,9.73527525,131.9,131.85,250.08]
[1742747801311,9.73527525,131.89,131.85,259.81527525]
[1742747801503,7.5837,131.89,131.86,17.32037525]
[1742747801697,0.05781224,131.88,131.86,9.7903127]
[1742747802306,0.05781224,131.88,131.86,17.3750127]
[1742747803300,0.05781224,131.88,131.87,17.31977525]
[1742747805603,359.0,131.93,131.9,7.5822]
[1742747805902,9.73527525,131.91,131.74,84.32030312]
[1742747806106,9.73527525,131.83,131.79,9.73527525]
[1742747806407,363.1815,131.9,131.78,9.73527525]
[1742747806408,9.73527525,131.82,131.78,9.73527525]
[1742747806601,359.0,131.89,131.74,84.32030312]
[1742747806602,9.78719451,131.81,131.79,0.05097032]
[1742747806802,7.5893,131.79,131.77,9.73527525]
[1742747807404,7.5888,131.8,131.77,9.73527525]
[1742747807708,7.5888,131.8,131.76,94.05557837]
[1742747807709,17.32407525,131.8,131.76,94.05557837]
[1742747807904,17.37462127,131.8,131.77,0.04838559]
[1742747808206,9.73527525,131.79,131.77,0.04838559]
[1742747809007,0.05054602,131.8,131.77,0.04838559]
[1742747809402,7.5897,131.78,131.77,0.04838559]
[1742747809707,0.05054602,131.8,131.77,0.04838559]
[1742747809905,7.5895,131.79,131.77,0.04838559]
[1742747810911,7.5897,131.78,131.77,0.04838559]
[1742747813809,7.5913,131.76,131.7,29.4]
[1742747814010,44.51966343,131.79,131.7,29.4]
[1742747814011,15.23966343,131.77,131.7,52.23376343]
[1742747814508,15.23966343,131.77,131.7,44.63966343]
[1742747814707,378.26436343,131.81,131.74,15.23966343]
[1742747814909,378.26436343,131.81,131.75,29.4]
[1742747815109,0.05821156,131.79,131.75,29.4]
[1742747815302,0.05821156,131.79,131.77,0.0580163]
[1742747815706,0.05821156,131.79,131.78,29.42]
[1742747816309,0.05821156,131.79,131.77,0.0580163]
[1742747817508,0.05821156,131.79,131.77,7.6483163]
[1742747818616,0.05821156,131.79,131.77,0.0580163]
[1742747819116,0.05821156,131.79,131.77,7.6483163]
[1742747819711,4.0885,131.84,131.78,15.23966343]
[1742747820017,15.23966343,131.82,131.76,29.56]
[1742747820214,15.23966343,131.82,131.78,7.5893]
[1742747820415,15.23966343,131.82,131.79,29.58]
[1742747820814,15.29139102,131.82,131.79,0.04818999]
[1742747821118,7.5884,131.81,131.79,0.04818999]
[1742747821316,15.29139102,131.82,131.79,0.04818999]
[1742747821614,7.588,131.81,131.79,0.04818999]
[1742747822212,15.29139102,131.82,131.73,265.53966343]
[1742747822411,17.29416343,131.8,131.74,29.54]
[1742747822818,7.5909,131.76,131.74,29.54]
[1742747823415,7.64202122,131.76,131.74,29.58975214]
[1742747823615,0.05112122,131.76,131.74,29.58975214]
[1742747824312,0.05112122,131.76,131.74,0.04975214]
[1742747825924,0.05112122,131.76,131.75,7.5914]
[1742747827520,0.05112122,131.76,131.75,22.83106343]
[1742747827719,2.122e-05,131.76,131.75,22.83106343]
[1742747827922,2.122e-05,131.76,131.75,30.41106343]
[1742747828419,2.122e-05,131.76,131.75,22.83106343]
[1742747828818,2.122e-05,131.76,131.75,17.34370424]
[1742747830925,2.122e-05,131.76,131.75,7.5914]
[1742747832632,15.2368554,131.85,131.81,7.5877]
[1742747832833,15.2368554,131.85,131.8,29.36]
[1742747833134,7.5871,131.83,131.8,36.9482]
[1742747833630,7.5877,131.82,131.8,29.36]
[1742747833929,7.5877,131.82,131.8,29.41765814]
[1742747834336,22.87663726,131.83,131.8,37.00615814]
[1742747835035,15.28953726,131.83,131.81,7.5877]
[1742747835335,0.05268186,131.83,131.8,29.41765814]
[1742747835528,15.28953726,131.83,131.8,29.41765814]
[1742747835727,7.5877,131.82,131.8,29.41765814]
[1742747836732,22.87663726,131.83,131.8,37.00615814]
[1742747837136,15.28953726,131.83,131.8,37.00615814]
[1742747837335,7.5875,131.82,131.8,29.41765814]
[1742747838038,22.87643726,131.83,131.8,37.00585814]
[1742747838539,15.28953726,131.83,131.8,29.41765814]
[1742747838735,7.5877,131.82,131.8,29.41765814]
[1742747839236,7.588,131.81,131.8,29.41765814]
[1742747839439,19.4398554,131.81,131.74,279.62]
[1742747839839,29.24,131.8,131.74,279.62]
[1742747840440,7.5894,131.79,131.76,7.6407848]
[1742747840644,0.05214596,131.78,131.76,7.6407848]
[1742747840944,0.05214596,131.78,131.77,7.5903]
[1742747841139,0.05214596,131.78,131.77,36.8103]
[1742747842544,0.05214596,131.78,131.76,7.6408848]
[1742747842747,15.2368554,131.77,131.76,0.0501848]
[1742747842948,22.8271554,131.77,131.76,0.0501848]
[1742747843138,0.05214596,131.78,131.76,0.0501848]
[1742747843543,7.64224596,131.78,131.76,0.0501848]
[1742747844242,22.8271554,131.77,131.76,0.0501848]
[1742747844440,7.5903,131.77,131.72,29.24]
[1742747844641,1.9422,131.79,131.72,29.24]
[1742747845142,1.9422,131.79,131.75,7.5911]
[1742747845647,15.28740347,131.78,131.72,29.24]
[1742747845841,0.05054807,131.78,131.72,29.24]
[1742747846241,15.2368554,131.77,131.72,29.24]
[1742747846548,7.5909,131.76,131.72,29.24]
[1742747846749,2.0732,131.77,131.72,29.24]
[1742747846943,0.05236749,131.75,131.74,7.5917]
[1742747847343,0.05236749,131.75,131.72,29.24]
[1742747848146,0.05236749,131.75,131.71,15.2368554]
[1742747848352,0.05236749,131.75,131.72,29.2]
[1742747849154,0.05236749,131.75,131.74,7.592]
[1742747849453,0.05236749,131.75,131.72,29.2]
[1742747850149,0.05236749,131.75,131.74,7.592]
[1742747850556,0.05236749,131.75,131.72,29.2]
[1742747851456,0.05236749,131.75,131.74,7.592]
[1742747852959,0.05236749,131.75,131.73,7.5924]
[1742747853256,0.05236749,131.75,131.72,38.9577902]
[1742747853555,0.05236749,131.75,131.73,7.5922]
[1742747854148,9.7577902,131.74,131.7,9.7577902]
[1742747854455,9.7577902,131.74,131.7,38.8777902]
[1742747854854,9.81015769,131.75,131.71,9.7577902]
[1742747855151,9.7577902,131.74,131.69,250.36]
[1742747855358,9.81015769,131.75,131.71,9.7577902]
[1742747855557,0.05236749,131.75,131.72,38.8977902]
[1742747855956,0.05236749,131.75,131.73,7.5922]
[1742747856151,9.7577902,131.74,131.72,29.14]
[1742747856356,9.81015769,131.75,131.72,29.14]
[1742747856557,9.81015769,131.75,131.73,7.5926]
[1742747857162,9.7577902,131.74,131.69,29.12]
[1742747857459,9.7577902,131.74,131.69,29.14]
[1742747857460,9.7577902,131.72,131.69,29.14]
[1742747857655,11.8380902,131.74,131.69,38.8977902]
[1742747858050,0.05746731,131.73,131.69,38.8977902]
[1742747858255,9.7577902,131.72,131.68,38.8977902]
[1742747858453,11.8380902,131.74,131.7,9.7577902]
[1742747858659,2.0803,131.74,131.72,9.7577902]
[1742747858865,0.04915281,131.73,131.7,9.7577902]
[1742747859062,0.04915281,131.73,131.71,9.7577902]
[1742747859262,0.04915281,131.73,131.72,7.5932]
[1742747859962,0.04915281,131.73,131.71,7.5935]
[1742747860265,9.80694301,131.73,131.71,7.5935]
[1742747860455,0.04915281,131.73,131.71,9.7577902]
[1742747860660,0.04915281,131.73,131.72,38.8977902]
[1742747860858,372.8455902,131.77,131.72,38.8977902]
[1742747861060,0.04808436,131.74,131.73,9.7577902]
[1742747862066,0.04808436,131.74,131.73,17.3503902]
[1742747862266,0.04808436,131.74,131.73,7.5926]
[1742747867470,0.04808436,131.74,131.73,36.6126]
[1742747868365,9.6708,131.8,131.73,29.02]
[1742747868572,9.6708,131.8,131.76,15.24659995]
[1742747868868,9.6708,131.8,131.77,36.5898]
[1742747869170,2.0822,131.8,131.77,36.5898]
[1742747869560,0.05478947,131.8,131.77,29.05288422]
[1742747869959,0.05478947,131.8,131.78,15.24659995]
[1742747870365,0.05478947,131.8,131.79,7.5891]
[1742747870974,8.947e-05,131.8,131.79,7.5891]
[1742747872170,1.9529,131.87,131.78,15.24659995]
[1742747872369,1.9529,131.87,131.82,15.24659995]
[1742747872575,359.0,131.88,131.83,29.02]
[1742747872973,1.9624,131.9,131.84,15.24659995]
[1742747873274,7.63730132,131.88,131.86,0.05676292]
[1742747873572,7.63730132,131.88,131.86,29.03676292]
[1742747874471,7.5845,131.87,131.86,0.05676292]
[1742747874671,15.29960127,131.88,131.83,29.0]
[1742747874871,15.24659995,131.88,131.83,29.0]
[1742747875073,15.24659995,131.88,131.79,15.24659995]
[1742747875265,15.24659995,131.86,131.81,29.02]
[1742747875575,1.9893,131.85,131.81,29.02]
[1742747875791,2.03966421,131.85,131.82,0.05431592]
[1742747876273,7.5868,131.83,131.82,0.05431592]
[1742747882379,376.23679995,131.84,131.77,279.52]
[1742747882572,29.06,131.83,131.77,279.52]
[1742747882881,7.5894,131.79,131.77,29.06]
[1742747883175,29.06,131.83,131.77,44.28659995]
[1742747883371,0.05241547,131.81,131.79,7.5888]
[1742747883575,0.05241547,131.81,131.8,29.04]
[1742747884178,0.05241547,131.81,131.8,36.6286]
[1742747885080,0.05241547,131.81,131.8,29.04]
[1742747886381,7.64041547,131.81,131.8,29.04]
[1742747887181,7.64041547,131.81,131.79,29.02]
[1742747887377,7.5889,131.8,131.77,44.26659995]
[1742747887683,0.05241547,131.81,131.76,36.6906]
[1742747887980,7.589,131.8,131.76,44.34659995]
[1742747888181,7.64679444,131.8,131.76,44.34659995]
[1742747888382,0.05779444,131.8,131.77,7.5903]
[1742747889383,7.64659444,131.8,131.77,7.5903]
[1742747889582,0.05779444,131.8,131.77,7.5903]
[1742747889786,7.59,131.78,131.74,29.08]
[1742747889985,7.59,131.78,131.75,29.08]
[1742747890196,0.05587758,131.77,131.75,29.08]
[1742747890885,7.64637758,131.77,131.75,29.08]
[1742747891883,7.64637758,131.77,131.74,29.04]
[1742747892486,7.591,131.76,131.74,29.04]
[1742747893087,7.64647758,131.77,131.74,36.632]
[1742747893501,0.05587758,131.77,131.75,15.24659995]
[1742747893682,0.05587758,131.77,131.76,7.5909]
[1742747894190,1.9409,131.84,131.75,15.24659995]
[1742747894392,7.5872,131.83,131.78,15.24659995]
[1742747894588,359.0,131.85,131.79,29.02]
[1742747894988,7.5869,131.83,131.8,7.5881]
[1742747895390,0.05206405,131.83,131.8,0.05442792]
[1742747895586,0.05206405,131.83,131.81,7.5879]
[1742747895892,0.05206405,131.83,131.82,29.0]
[1742747896794,0.05206405,131.83,131.82,36.5874]
[1742747897699,0.05206405,131.83,131.82,51.83399995]
[1742747899293,7.5843,131.88,131.85,7.5855]
[1742747899495,7.5843,131.88,131.86,28.92]
[1742747899793,359.0,131.9,131.86,28.92]
[1742747899990,366.5832,131.9,131.86,28.92]
[1742747900182,359.0,131.9,131.86,36.5049]
[1742747900384,0.0532905,131.89,131.87,0.05335419]
[1742747900583,7.6366905,131.89,131.87,0.05335419]
[1742747901812,7.584,131.88,131.87,0.05335419]
[1742747903992,7.6369905,131.89,131.87,0.05335419]
[1742747905094,0.0532905,131.89,131.87,7.63755419]
[1742747905290,0.0532905,131.89,131.87,0.05335419]
[1742747905895,0.0532905,131.89,131.88,7.584]
[1742747907496,0.0532905,131.89,131.88,22.83059995]
[1742747910002,374.24659995,131.96,131.88,22.83059995]
[1742747910003,359.0,131.96,131.88,15.24659995]
[1742747910199,366.5796,131.96,131.9,15.24659995]
[1742747910400,359.0,131.96,131.9,15.24659995]
[1742747910700,359.0,131.96,131.92,7.5811]
[1742747910905,359.0,131.96,131.93,28.88]
[1742747911200,0.05096782,131.95,131.93,28.93236189]
[1742747911811,7.63126782,131.95,131.93,28.93236189]
[1742747912011,0.05096782,131.95,131.93,0.05236189]
[1742747912509,0.05096782,131.95,131.94,28.86]
[1742747913014,0.05096782,131.95,131.94,36.4405]
[1742747914318,0.05096782,131.95,131.94,51.68709995]
[1742747917010,0.05096782,131.95,131.94,36.4405]
[1742747918613,0.05096782,131.95,131.94,51.68709995]
[1742747921315,0.05096782,131.95,131.94,36.4405]
[1742747922822,0.05096782,131.95,131.94,51.68709995]
[1742747925020,0.05096782,131.95,131.94,46.16443111]
[1742747927415,0.05096782,131.95,131.94,36.4405]
[1742747927822,0.05096782,131.95,131.94,46.16443111]
[1742747930112,359.0,132.0,131.94,38.58393111]
[1742747930416,11.68983111,132.01,131.97,9.72393111]
[1742747930612,19.26633111,132.01,131.98,36.0779]
[1742747931222,19.32249144,132.01,131.98,36.12803829]
[1742747932325,2.02206033,132.01,131.99,7.5775]
[1742747933222,9.59856033,132.01,131.99,7.5775]
[1742747933524,9.59856033,132.01,131.98,45.8520694]
[1742747933820,9.72393111,132.0,131.98,28.55013829]
[1742747934520,7.5776,131.99,131.98,28.55013829]
[1742747936222,9.72393111,132.0,131.98,28.55013829]
[1742747936624,9.72393111,131.99,131.98,28.55013829]
[1742747936827,17.30143111,132.0,131.98,28.55013829]
[1742747938430,9.72393111,132.0,131.98,28.55013829]
[1742747939425,9.72393111,132.0,131.98,36.12833829]
[1742747940827,17.30103111,132.0,131.98,36.12833829]
[1742747941021,17.30103111,132.0,131.98,28.55013829]
[1742747941222,9.72393111,131.99,131.98,0.05013829]
[1742747941423,17.30193111,131.99,131.96,35.8591]
[1742747941625,9.72393111,131.98,131.96,35.8591]
[1742747942231,9.72393111,131.99,131.97,7.5788]
[1742747942429,9.72393111,131.99,131.96,28.28]
[1742747942623,9.72393111,131.99,131.97,0.05810823]
[1742747942624,0.04884242,131.99,131.97,0.05810823]
[1742747943328,0.04884242,131.99,131.98,7.5782]
[1742747944231,0.04884242,131.99,131.97,7.63660823]
[1742747945535,0.04884242,131.99,131.98,7.5782]
[1742747945930,0.04884242,131.99,131.97,0.05810823]
[1742747946230,9.77277353,131.99,131.97,0.05810823]
[1742747946731,17.35067353,131.99,131.97,7.63690823]
[1742747947126,0.04884242,131.99,131.98,7.5782]
[1742747950635,0.04884242,131.99,131.97,7.63660823]
[1742747950931,9.77277353,131.99,131.97,0.05810823]
[1742747951131,7.5782,131.98,131.97,0.05810823]
[1742747952141,17.30213111,131.98,131.96,25.0604]
[1742747952338,19.25133111,131.98,131.94,37.88393111]
[1742747952737,19.25133111,131.98,131.95,7.5797]
[1742747953037,19.25133111,131.98,131.94,37.88393111]
[1742747953537,1.9492,131.98,131.95,0.04871937]
[1742747953733,1.9492,131.98,131.95,28.18871937]
[1742747953937,9.72393111,131.97,131.95,0.04871937]
[1742747955535,7.5794,131.96,131.95,0.04871937]
[1742747955833,9.72393111,131.96,131.93,28.12]
[1742747956039,17.30483111,131.94,131.91,35.702]
[1742747956232,9.72393111,131.93,131.91,7.582]
[1742747956633,9.72393111,131.92,131.86,28.12]
[1742747956935,9.72393111,131.88,131.84,28.12]
[1742747957135,9.72393111,131.89,131.87,7.584]
[1742747957335,9.72393111,131.89,131.85,37.84393111]